bitfinex-derivatives/quotes_BTCF0:USTF0_20260207
["timestamp","ask_amount","ask_price","bid_price","bid_amount"]
[1770431651318,0.01418,70569.0,70553.0,0.2601756]
[1770431651525,0.2780134,70578.0,70553.0,0.2601756]
[1770431651526,0.01418,70567.0,70553.0,0.2601756]
[1770431651924,0.2780134,70578.0,70553.0,0.2601756]
[1770431652124,0.01418,70567.0,70553.0,0.2601756]
[1770431652822,0.2780134,70576.0,70553.0,0.2601756]
[1770431653024,0.014181,70563.0,70547.0,0.2601756]
[1770431653225,0.01405361,70563.0,70547.0,0.2601756]
[1770431654736,0.014181,70564.0,70547.0,0.2601756]
[1770431657427,0.014181,70564.0,70549.0,0.2601756]
[1770431657628,0.01418,70567.0,70551.0,0.2601756]
[1770431658525,0.014179,70573.0,70555.0,0.2601756]
[1770431658725,0.014179,70573.0,70559.0,0.2601756]
[1770431659236,0.014179,70571.0,70559.0,0.2601756]
[1770431661634,0.01418,70569.0,70559.0,0.2601756]
[1770431662036,0.014179,70573.0,70559.0,0.2601756]
[1770431662330,0.014179,70571.0,70559.0,0.2601756]
[1770431663027,0.01418,70569.0,70559.0,0.2601756]
[1770431664533,0.01418,70569.0,70553.0,0.2601756]
[1770431664733,0.01418,70567.0,70553.0,0.2601756]
[1770431665938,0.01418,70570.0,70553.0,0.2601756]
[1770431667943,0.2780134,70595.0,70566.0,0.2601756]
[1770431668137,0.2780134,70595.0,70578.0,0.2601756]
[1770431668339,0.2780134,70614.0,70593.0,0.2601756]
[1770431668640,0.2780134,70614.0,70596.0,0.2601756]
[1770431668841,0.2780134,70614.0,70597.0,0.2743496]
[1770431669044,0.2780134,70614.0,70597.0,0.2601756]
[1770431669248,0.2921844,70614.0,70597.0,0.2601756]
[1770431669434,0.2931844,70614.0,70597.0,0.2601756]
[1770431669833,0.014171,70612.0,70597.0,0.2601756]
[1770431670543,0.014172,70610.0,70597.0,0.2601756]
[1770431670942,0.2780134,70627.0,70597.0,0.2601756]
[1770431671139,0.014169,70624.0,70602.0,0.2601756]
[1770431672039,0.014169,70622.0,70604.0,0.2601756]
[1770431675748,0.014168,70626.0,70604.0,0.2743486]
[1770431675941,0.27302761,70613.0,70595.0,0.27708713]
[1770431676244,0.014174,70597.0,70582.0,0.27708713]
[1770431676449,0.27302761,70599.0,70582.0,0.27708713]
[1770431677842,0.27302761,70599.0,70549.0,0.21266525]
[1770431677843,0.27302761,70592.0,70567.0,0.27708713]
[1770431678043,0.27302761,70589.0,70567.0,0.27708713]
[1770431678450,0.014177,70581.0,70567.0,0.27708713]
[1770431678646,0.014177,70585.0,70567.0,0.27708713]
[1770431680745,0.014176,70588.0,70567.0,0.27708713]
[1770431680941,0.014176,70588.0,70569.0,0.27708713]
[1770431681941,0.014176,70588.0,70571.0,0.27708713]
[1770431682143,0.014176,70588.0,70550.0,0.014183]
[1770431682144,0.014175,70595.0,70577.0,0.27708713]
[1770431682350,0.014174,70597.0,70579.0,0.27708713]
[1770431686247,0.014174,70600.0,70581.0,0.27708713]
[1770431686546,0.014174,70600.0,70583.0,0.27708713]
[1770431687955,0.014174,70598.0,70583.0,0.27708713]
[1770431689851,0.27302761,70609.0,70583.0,0.27708713]
[1770431690053,0.014172,70607.0,70590.0,0.27708713]
[1770431690347,0.014172,70610.0,70592.0,0.27708713]
[1770431690552,0.27302761,70618.0,70594.0,0.27708713]
[1770431690753,0.014171,70610.0,70594.0,0.27708713]
[1770431691253,0.014172,70610.0,70594.0,0.27708713]
[1770431691647,0.014172,70608.0,70594.0,0.27708713]
[1770431692351,0.27302761,70609.0,70586.0,0.27708713]
[1770431692854,0.014173,70605.0,70587.0,0.29126313]
[1770431694151,0.014175,70595.0,70580.0,0.27708713]
[1770431694351,0.27302761,70598.0,70580.0,0.27708713]
[1770431694552,0.014175,70595.0,70580.0,0.27708713]
[1770431695755,0.014174,70598.0,70580.0,0.27708713]
[1770431697952,0.014174,70598.0,70580.0,0.29126413]
[1770431699553,0.014171,70613.0,70583.0,0.27708713]
[1770431699757,0.014173,70601.0,70583.0,0.27708713]
[1770431700153,0.27302761,70603.0,70583.0,0.27708713]
[1770431700358,0.014175,70591.0,70573.0,0.29126613]
[1770431700552,0.014173,70602.0,70582.0,0.27708713]
[1770431700747,0.014174,70598.0,70582.0,0.27708713]
[1770431700953,0.014175,70594.0,70582.0,0.27708713]
[1770431701259,0.014175,70592.0,70573.0,0.27708713]
[1770431701447,0.014175,70591.0,70573.0,0.27708713]
[1770431701652,0.27302761,70594.0,70573.0,0.27708713]
[1770431702055,0.014177,70581.0,70573.0,0.27708713]
[1770431702554,0.014177,70581.0,70562.0,0.27708713]
[1770431703059,0.014178,70578.0,70562.0,0.27708713]
[1770431703359,0.01418,70568.0,70555.0,0.27708713]
[1770431703562,0.014179,70571.0,70555.0,0.27708713]
[1770431704265,0.014179,70575.0,70555.0,0.27708713]
[1770431704462,0.014179,70575.0,70555.0,0.29126913]
[1770431704852,0.014178,70579.0,70558.0,0.014182]
[1770431705160,0.014178,70577.0,70559.0,0.27708713]
[1770431705756,0.014178,70577.0,70559.0,0.3900323]
[1770431705957,0.014178,70577.0,70560.0,0.24493369]
[1770431706158,0.014178,70577.0,70561.0,0.24493369]
[1770431707063,0.014181,70563.0,70556.0,5.2e-07]
[1770431707268,0.25020917,70566.0,70548.0,0.24493369]
[1770431707467,0.014181,70562.0,70548.0,0.24493369]
[1770431708060,0.25020917,70566.0,70541.0,0.2597367]
[1770431708362,0.085065,70582.0,70541.0,0.2597367]
[1770431708363,0.014183,70551.0,70541.0,0.2597367]
[1770431708868,0.014183,70551.0,70532.0,0.2597367]
[1770431710257,0.014184,70548.0,70532.0,0.2597367]
[1770431710459,0.014183,70552.0,70532.0,0.2739237]
[1770431710665,0.26070537,70558.0,70532.0,0.2597367]
[1770431710866,0.014183,70553.0,70532.0,0.2597367]
[1770431713563,0.26070537,70548.0,70523.0,0.2597367]
[1770431713758,0.014185,70543.0,70523.0,0.2597367]
[1770431713961,0.26070537,70548.0,70523.0,0.2597367]
[1770431714357,0.014185,70543.0,70523.0,0.2597367]
[1770431715070,0.014185,70543.0,70522.0,0.014189]
[1770431715071,0.014184,70547.0,70527.0,0.2597367]
[1770431715962,0.014184,70548.0,70529.0,0.2597367]
[1770431716172,0.014183,70555.0,70536.0,0.2597367]
[1770431716365,0.014183,70551.0,70536.0,0.2597367]
[1770431716868,0.26070537,70565.0,70536.0,0.2597367]
[1770431717072,0.014181,70561.0,70545.0,0.2597367]
[1770431717271,0.014175,70592.0,70554.0,0.2597367]
[1770431717272,0.26070537,70577.0,70554.0,0.2597367]
[1770431717567,0.01418,70568.0,70554.0,0.2597367]
[1770431717773,0.014181,70564.0,70554.0,0.2597367]
[1770431718174,0.01418,70567.0,70554.0,0.2597367]
[1770431720869,0.01418,70567.0,70527.0,0.21177219]
[1770431720870,0.26070537,70549.0,70525.0,0.2597367]
[1770431721169,0.014185,70541.0,70525.0,0.2597367]
[1770431721566,0.014185,70545.0,70525.0,0.2597367]
[1770431721967,0.26070537,70542.0,70517.0,0.2597367]
[1770431723077,0.014186,70538.0,70517.0,0.2597367]
[1770431723378,0.014186,70538.0,70519.0,0.2597367]
[1770431727173,0.26070537,70549.0,70523.0,0.2597367]
[1770431727378,0.56508021,70584.0,70527.0,0.2597367]
[1770431727379,0.26070537,70556.0,70527.0,0.2597367]
[1770431727976,0.26070537,70564.0,70534.0,0.2597367]
[1770431728386,0.014183,70553.0,70534.0,0.2597367]
[1770431728680,0.014183,70553.0,70534.0,0.2739237]
[1770431728883,0.26070537,70571.0,70537.0,0.2597367]
[1770431729079,0.014182,70557.0,70539.0,0.2597367]
[1770431729285,0.014183,70555.0,70539.0,0.2597367]
[1770431729783,0.26070537,70571.0,70539.0,0.2597367]
[1770431729784,0.014181,70562.0,70539.0,0.2597367]
[1770431730382,0.26070537,70578.0,70552.0,0.2597367]
[1770431730684,0.01418,70570.0,70554.0,0.2597367]
[1770431731086,0.014179,70573.0,70554.0,0.2597367]
[1770431731289,0.014179,70573.0,70542.0,0.014185]
[1770431731290,0.014179,70573.0,70556.0,0.2597367]
[1770431731988,0.26070537,70585.0,70558.0,0.2597367]
[1770431732184,0.26070537,70585.0,70536.0,0.014186]
[1770431732185,0.26070537,70566.0,70538.0,0.2597367]
[1770431732491,0.26070537,70563.0,70538.0,0.2739227]
[1770431733185,0.014178,70579.0,70538.0,0.2597367]
[1770431733186,0.27488637,70562.0,70538.0,0.2597367]
[1770431733488,0.26070537,70562.0,70538.0,0.2597367]
[1770431733686,0.26070537,70560.0,70538.0,0.2597367]
[1770431734084,0.014183,70553.0,70538.0,0.2597367]
[1770431734479,0.26070537,70560.0,70538.0,0.2597367]
[1770431734480,0.014182,70557.0,70538.0,0.2597367]
[1770431734685,0.26070537,70570.0,70543.0,0.2597367]
[1770431734885,0.26070537,70570.0,70543.0,0.2739217]
[1770431735088,0.014181,70563.0,70543.0,0.2739217]
[1770431737484,0.014181,70561.0,70543.0,0.2739217]
[1770431737692,0.014181,70561.0,70543.0,0.2597367]
[1770431739188,0.25407288,70562.0,70535.0,0.014186]
[1770431739389,0.014179,70572.0,70535.0,0.23317485]
[1770431739390,0.25407288,70560.0,70535.0,0.23317485]
[1770431739592,0.014184,70550.0,70535.0,0.23317485]
[1770431740793,0.25407288,70560.0,70537.0,0.23317485]
[1770431741191,0.014183,70553.0,70537.0,0.23317485]
[1770431741496,0.25407288,70560.0,70539.0,0.23317485]
[1770431741497,0.014182,70556.0,70539.0,0.23317485]
[1770431742392,0.014182,70559.0,70542.0,0.014185]
[1770431742596,0.014182,70559.0,70543.0,0.23317485]
[1770431743088,0.014182,70557.0,70543.0,0.23317485]
[1770431743392,0.014183,70555.0,70543.0,0.23317485]
[1770431746197,0.26825288,70567.0,70543.0,0.23317485]
[1770431746198,0.25407288,70567.0,70543.0,0.23317485]
[1770431746395,0.014182,70556.0,70543.0,0.23317485]
[1770431746594,0.26825288,70566.0,70543.0,0.23317485]
[1770431747091,0.014183,70555.0,70543.0,0.23317485]
[1770431749200,0.014183,70553.0,70543.0,0.23317485]
[1770431754710,0.014183,70551.0,70543.0,0.23317485]
[1770431755903,0.25407288,70561.0,70543.0,0.23317485]
[1770431756111,0.014183,70554.0,70543.0,0.23317485]
[1770431758210,0.014183,70553.0,70543.0,0.23317485]
[1770431759420,0.25407288,70561.0,70543.0,0.23317485]
[1770431759910,0.014182,70556.0,70543.0,0.23317485]
[1770431760914,0.014181,70564.0,70545.0,0.014184]
[1770431761107,0.25407288,70574.0,70550.0,0.23317485]
[1770431761108,0.014181,70563.0,70550.0,0.23317485]
[1770431761907,0.25407288,70581.0,70552.0,0.23317485]
[1770431762109,0.25407288,70579.0,70554.0,0.23317485]
[1770431762816,0.014178,70576.0,70556.0,0.23317485]
[1770431763113,0.25407288,70600.0,70564.0,0.23317485]
[1770431763414,0.25407288,70584.0,70559.0,0.23317485]
[1770431763616,0.014179,70573.0,70559.0,0.23317485]
[1770431764814,0.014179,70573.0,70544.0,0.16941775]
[1770431764815,0.25407288,70573.0,70552.0,0.23317485]
[1770431765016,0.25407288,70573.0,70554.0,0.23317485]
[1770431765216,0.014179,70574.0,70554.0,0.23317485]
[1770431766018,0.014179,70572.0,70554.0,0.23317485]
[1770431766816,0.24389459,70572.0,70554.0,0.23317485]
[1770431768018,0.014174,70599.0,70548.0,0.12748919]
[1770431768019,0.014177,70583.0,70559.0,0.24590416]
[1770431768212,0.014177,70581.0,70564.0,0.24590416]
[1770431768614,0.014177,70584.0,70564.0,0.24590416]
[1770431769013,0.014177,70581.0,70564.0,0.24590416]
[1770431771415,0.23862244,70588.0,70564.0,0.24590416]
[1770431771416,0.014177,70585.0,70564.0,0.24590416]
[1770431771616,0.014176,70588.0,70567.0,0.24590416]
[1770431771810,0.23862244,70596.0,70567.0,0.24590416]
[1770431772214,0.23862244,70591.0,70567.0,0.24590416]
[1770431772526,0.014177,70584.0,70567.0,0.24590416]
[1770431774221,0.014177,70582.0,70567.0,0.24590416]
[1770431775425,0.25279944,70582.0,70560.0,0.37339035]
[1770431775617,0.25279944,70582.0,70562.0,0.26008516]
[1770431776124,0.014176,70586.0,70565.0,0.24590416]
[1770431777620,0.014177,70584.0,70565.0,0.24590416]
[1770431779026,0.014177,70582.0,70565.0,0.24590416]
[1770431779630,0.014178,70579.0,70565.0,0.24590416]
[1770431779928,0.25279944,70582.0,70565.0,0.24590416]
[1770431784931,0.014178,70580.0,70565.0,0.24590416]
[1770431785232,0.014179,70575.0,70558.0,0.24590416]
[1770431786429,0.014179,70573.0,70558.0,0.24590416]
[1770431786629,0.014178,70576.0,70558.0,0.24590416]
[1770431788727,0.23862244,70586.0,70558.0,0.24590416]
[1770431788932,0.23862244,70586.0,70563.0,0.24590416]
[1770431789830,0.014178,70579.0,70563.0,0.24590416]
[1770431790930,0.014177,70582.0,70565.0,0.24590416]
[1770431791534,0.014177,70582.0,70567.0,0.24590416]
[1770431792735,0.014178,70580.0,70567.0,0.24590416]
[1770431793239,0.23862244,70588.0,70567.0,0.24590416]
[1770431794436,0.014177,70582.0,70567.0,0.24590416]
[1770431799437,0.014177,70583.0,70567.0,0.26008416]
[1770431799638,0.23644325,70594.0,70567.0,0.24590416]
[1770431799839,0.014175,70592.0,70576.0,0.21784089]
[1770431800139,0.6602534,70598.0,70576.0,0.21784089]
[1770431800140,0.014176,70589.0,70576.0,0.21784089]
[1770431800345,0.014175,70592.0,70576.0,0.21784089]
[1770431802243,0.014176,70590.0,70576.0,0.21784089]
[1770431802451,0.23644325,70595.0,70576.0,0.21784089]
[1770431803044,0.23644325,70587.0,70569.0,0.21784089]
[1770431803247,0.014177,70582.0,70569.0,0.21784089]
[1770431805054,0.014177,70585.0,70569.0,0.21784089]
[1770431806461,0.014177,70583.0,70569.0,0.21784089]
[1770431808550,0.014173,70602.0,70572.0,0.21784089]
[1770431808749,0.25061625,70602.0,70572.0,0.33114608]
[1770431808946,0.25061625,70602.0,70573.0,0.21784089]
[1770431810254,0.014176,70590.0,70573.0,0.21784089]
[1770431810855,0.014175,70593.0,70573.0,0.21784089]
[1770431811054,0.014175,70593.0,70573.0,0.33114608]
[1770431811258,0.014175,70593.0,70574.0,0.21784089]
[1770431811951,0.25061625,70602.0,70576.0,0.21784089]
[1770431812358,0.014176,70590.0,70576.0,0.21784089]
[1770431812555,0.014176,70588.0,70576.0,0.21784089]
[1770431813256,0.23644325,70612.0,70580.0,0.21784089]
[1770431813557,0.014174,70600.0,70582.0,0.21784089]
[1770431815459,0.014174,70600.0,70584.0,0.21784089]
[1770431816663,0.014173,70603.0,70584.0,0.21784089]
[1770431816852,0.23644325,70612.0,70588.0,0.21784089]
[1770431817160,0.014173,70604.0,70588.0,0.21784089]
[1770431820951,0.014173,70601.0,70588.0,0.21784089]
[1770431821753,0.014173,70603.0,70588.0,0.21784089]
[1770431821955,0.014173,70601.0,70588.0,0.21784089]
[1770431822155,0.014173,70603.0,70588.0,0.21784089]
[1770431823065,0.01417,70619.0,70599.0,0.21784089]
[1770431823261,0.014167,70632.0,70582.0,0.014177]
[1770431823262,0.23644325,70632.0,70606.0,0.21784089]
[1770431823568,0.23644325,70650.0,70606.0,0.21784089]
[1770431823756,0.014164,70646.0,70625.0,0.23200889]
[1770431823956,0.23644325,70643.0,70625.0,0.21784089]
[1770431824261,0.014166,70638.0,70615.0,0.23201089]
[1770431824868,0.25060825,70642.0,70619.0,0.21784089]
[1770431826163,0.014164,70646.0,70622.0,0.23257813]
[1770431827464,0.014164,70646.0,70610.0,0.11332057]
[1770431827465,0.014164,70646.0,70624.0,0.23257813]
[1770431829168,0.014165,70641.0,70624.0,0.23257813]
[1770431830371,0.014166,70638.0,70624.0,0.23257813]
[1770431830571,0.23220749,70641.0,70624.0,0.23257813]
[1770431831069,0.23220749,70641.0,70619.0,0.23568757]
[1770431832058,0.23220749,70641.0,70620.0,0.24985657]
[1770431832573,0.21804249,70635.0,70605.0,0.23568757]
[1770431832869,0.21804249,70635.0,70615.0,0.24985757]
[1770431833872,0.014167,70633.0,70615.0,0.23568757]
[1770431834469,0.014167,70633.0,70615.0,0.24985757]
[1770431835369,0.014167,70633.0,70615.0,0.23568757]
[1770431837369,0.21804249,70635.0,70615.0,0.23568757]
[1770431837569,0.21804249,70632.0,70615.0,0.23568757]
[1770431838471,0.21804249,70632.0,70615.0,0.24985757]
[1770431840178,0.014167,70633.0,70615.0,0.24985757]
[1770431841870,0.42081015,70663.0,70644.0,0.22152257]
[1770431842071,0.014162,70658.0,70639.0,0.23568757]
[1770431842377,0.014162,70659.0,70639.0,0.23568757]
[1770431842572,0.014162,70657.0,70639.0,0.23568757]
[1770431844978,0.23220449,70655.0,70637.0,0.014166]
[1770431845473,0.014163,70653.0,70635.0,0.23568757]
[1770431845674,0.014163,70653.0,70636.0,0.24985357]
[1770431846181,0.23220649,70647.0,70629.0,0.014168]
[1770431846377,0.23220749,70645.0,70627.0,0.23568757]
[1770431847072,0.014165,70643.0,70627.0,0.23568757]
[1770431847276,0.014167,70634.0,70619.0,0.23568757]
[1770431848284,0.014168,70627.0,70613.0,0.23568757]
[1770431848472,0.21804249,70620.0,70600.0,0.11332057]
[1770431848682,0.21804249,70620.0,70598.0,0.23568757]
[1770431848980,0.21804249,70609.0,70585.0,0.11332057]
[1770431849282,0.014174,70597.0,70583.0,0.23568757]
[1770431849788,0.23221649,70597.0,70573.0,0.24904338]
[1770431850079,0.23221649,70597.0,70570.0,0.11332057]
[1770431850080,0.014172,70608.0,70584.0,0.23486438]
[1770431850275,0.21804249,70614.0,70584.0,0.23486438]
[1770431850676,0.014172,70606.0,70584.0,0.23486438]
[1770431850982,0.21804249,70614.0,70584.0,0.23486438]
[1770431852384,0.014173,70604.0,70584.0,0.23486438]
[1770431854589,0.014173,70604.0,70571.0,0.16941775]
[1770431854590,0.014175,70592.0,70575.0,0.23088151]
[1770431855587,0.23221649,70595.0,70575.0,0.23088151]
[1770431859491,0.014174,70600.0,70579.0,0.014178]
[1770431859680,0.2110245,70610.0,70584.0,0.21352184]
[1770431860289,0.014172,70610.0,70589.0,0.21352184]
[1770431860490,0.2110245,70611.0,70589.0,0.21352184]
[1770431860688,0.014172,70606.0,70589.0,0.21352184]
[1770431862890,0.014172,70608.0,70589.0,0.21352184]
[1770431863080,0.2110245,70617.0,70589.0,0.21352184]
[1770431863388,0.014173,70605.0,70589.0,0.21352184]
[1770431864277,0.014172,70609.0,70589.0,0.21352184]
[1770431864585,0.01417,70616.0,70594.0,0.20552974]
[1770431865390,0.014171,70614.0,70596.0,0.20387248]
[1770431865788,0.014171,70612.0,70596.0,0.20387248]
[1770431875790,0.014171,70615.0,70596.0,0.21804648]
[1770431876696,0.01417,70618.0,70599.0,0.18668711]
[1770431876896,0.014171,70614.0,70599.0,0.18668711]
[1770431877394,0.014171,70612.0,70599.0,0.18668711]
[1770431879596,0.014172,70610.0,70599.0,0.18668711]
[1770431879784,0.014172,70608.0,70593.0,0.18357866]
[1770431880692,0.014172,70606.0,70593.0,0.18357866]
[1770431881498,0.014172,70609.0,70593.0,0.18357866]
[1770431881796,0.014172,70607.0,70593.0,0.18357866]
[1770431882691,0.014174,70597.0,70585.0,0.11332057]
[1770431882998,0.2110245,70601.0,70581.0,0.18014667]
[1770431882999,0.014175,70595.0,70581.0,0.18014667]
[1770431883198,0.2251995,70595.0,70576.0,0.11332057]
[1770431883400,0.2251995,70595.0,70575.0,0.30764524]
[1770431883599,0.2251995,70595.0,70576.0,0.17684699]
[1770431883796,0.2251995,70595.0,70577.0,0.014178]
[1770431884101,0.2110245,70597.0,70576.0,0.17684699]
[1770431885101,0.014174,70595.0,70576.0,0.17684699]
[1770431885298,0.014175,70593.0,70576.0,0.17684699]
[1770431888298,0.014174,70596.0,70576.0,0.17684699]
[1770431888596,0.18719827,70610.0,70585.0,0.16569756]
[1770431888903,0.014173,70604.0,70585.0,0.16569756]
[1770431889405,0.014174,70600.0,70585.0,0.16569756]
[1770431892104,0.014173,70603.0,70585.0,0.16569756]
[1770431892807,0.18719827,70613.0,70585.0,0.16569756]
[1770431893006,0.18719827,70619.0,70585.0,0.16569756]
[1770431893208,0.014172,70607.0,70594.0,0.19416471]
[1770431893403,0.18719827,70609.0,70588.0,0.19416471]
[1770431893404,0.014173,70603.0,70588.0,0.19416471]
[1770431893606,0.18719827,70609.0,70588.0,0.19416471]
[1770431893810,0.014173,70603.0,70588.0,0.19416471]
[1770431894212,0.014173,70601.0,70588.0,0.19416471]
[1770431894409,0.18719827,70596.0,70572.0,0.19416471]
[1770431894614,0.20137427,70589.0,70572.0,0.19416471]
[1770431894908,0.014176,70588.0,70572.0,0.19416471]
[1770431895106,0.20137027,70606.0,70576.0,0.19416471]
[1770431895308,0.014174,70595.0,70578.0,0.19416471]
[1770431895807,0.014176,70586.0,70573.0,0.11314724]
[1770431896010,0.014176,70589.0,70572.0,0.19416471]
[1770431896717,0.014175,70592.0,70572.0,0.19416471]
[1770431897411,0.014172,70606.0,70571.0,0.12732624]
[1770431897412,0.18719827,70602.0,70574.0,0.19416471]
[1770431897907,0.014174,70597.0,70578.0,0.19416471]
[1770431898106,0.014174,70600.0,70582.0,0.19416471]
[1770431898716,0.014174,70597.0,70582.0,0.19416471]
[1770431898911,0.014174,70600.0,70582.0,0.19416471]
[1770431900316,0.014174,70598.0,70582.0,0.19416471]
[1770431902424,0.18719827,70602.0,70582.0,0.19416471]
[1770431902722,0.014175,70593.0,70582.0,0.19416471]
[1770431904621,0.014175,70593.0,70576.0,0.19416471]
[1770431905524,0.014174,70596.0,70578.0,0.19416471]
[1770431909231,0.014175,70594.0,70578.0,0.19416471]
[1770431911629,0.014174,70597.0,70578.0,0.19416471]
[1770431913130,0.18719827,70608.0,70582.0,0.19416471]
[1770431913433,0.014173,70600.0,70587.0,0.19416471]
[1770431914433,0.014173,70603.0,70587.0,0.19416471]
[1770431914634,0.014172,70609.0,70590.0,0.19416471]
[1770431914832,0.014172,70609.0,70592.0,0.19416471]
[1770431916328,0.014171,70612.0,70592.0,0.19416471]
[1770431916530,0.014172,70610.0,70592.0,0.19416471]
[1770431917334,0.1862572,70621.0,70592.0,0.19416471]
[1770431918430,0.1862572,70618.0,70592.0,0.19416471]
[1770431919140,0.014172,70609.0,70592.0,0.19416471]
[1770431921839,0.014171,70612.0,70592.0,0.20833971]
[1770431922237,0.014172,70610.0,70592.0,0.20833971]
[1770431922439,0.1862572,70616.0,70592.0,0.19416471]
[1770431922736,0.014172,70607.0,70592.0,0.19416471]
[1770431923135,0.014172,70610.0,70592.0,0.19416471]
[1770431923338,0.1862572,70623.0,70596.0,0.18303192]
[1770431924943,0.014171,70610.0,70596.0,0.18303192]
[1770431926143,0.014172,70608.0,70596.0,0.18303192]
[1770431927136,0.1862572,70610.0,70586.0,0.18303192]
[1770431927336,0.014172,70606.0,70588.0,0.18303192]
[1770431927738,0.014174,70600.0,70588.0,0.18303192]
[1770431928136,0.2004302,70603.0,70588.0,0.18303192]
[1770431928538,0.2004302,70603.0,70582.0,0.014177]
[1770431928539,0.014175,70593.0,70582.0,0.18303192]
[1770431928738,0.2004312,70596.0,70582.0,0.18303192]
[1770431929341,0.2004312,70596.0,70577.0,0.014178]
[1770431929850,0.2004312,70596.0,70578.0,0.18303192]
[1770431930349,0.2004322,70592.0,70572.0,0.18303192]
[1770431930742,0.1862572,70592.0,70575.0,0.014178]
[1770431930946,0.1862572,70592.0,70575.0,0.19720992]
[1770431931438,0.1862572,70598.0,70580.0,0.18303192]
[1770431932446,0.014174,70597.0,70580.0,0.18303192]
[1770431933358,0.014175,70595.0,70580.0,0.18303192]
[1770431935052,0.1862572,70601.0,70580.0,0.18303192]
[1770431936354,0.014175,70595.0,70580.0,0.18303192]
[1770431940643,0.014174,70599.0,70580.0,0.18303192]
[1770431940844,0.014174,70597.0,70580.0,0.18303192]
[1770431942552,0.014175,70595.0,70580.0,0.18303192]
[1770431942752,0.1862572,70603.0,70580.0,0.18303192]
[1770431942950,0.1862572,70600.0,70580.0,0.18303192]
[1770431943352,0.1862572,70597.0,70580.0,0.18303192]
[1770431943751,0.014175,70594.0,70580.0,0.18303192]
[1770431949854,0.18619539,70595.0,70580.0,0.18303192]
[1770431950155,0.014176,70590.0,70575.0,0.18882591]
[1770431952357,0.014175,70594.0,70577.0,0.18882591]
[1770431954260,0.014175,70592.0,70577.0,0.18882591]
[1770431962063,0.18619539,70587.0,70573.0,0.11321148]
[1770431962262,0.18619539,70587.0,70555.0,0.18882591]
[1770431962263,0.18619539,70575.0,70555.0,0.18882591]
[1770431962862,0.18619539,70575.0,70538.0,0.21177219]
[1770431962863,0.014182,70560.0,70549.0,0.13686033]
[1770431963062,0.014182,70558.0,70549.0,0.13686033]
[1770431963564,0.18619539,70562.0,70538.0,0.13686033]
[1770431963970,0.18619539,70573.0,70544.0,0.14744505]
[1770431964154,0.014181,70564.0,70546.0,0.14744505]
[1770431964361,0.18619539,70564.0,70536.0,0.14744505]
[1770431965064,0.18619539,70564.0,70538.0,0.14722482]
[1770431965455,0.014182,70560.0,70540.0,0.14722482]
[1770431965855,0.01418,70566.0,70545.0,0.014184]
[1770431966061,0.014181,70565.0,70546.0,0.14102934]
[1770431967264,0.18619539,70567.0,70546.0,0.14102934]
[1770431967459,0.014182,70558.0,70546.0,0.14102934]
[1770431967861,0.014182,70556.0,70546.0,0.14102934]
[1770431968263,0.014182,70556.0,70537.0,0.13928338]
[1770431968769,0.014182,70556.0,70525.0,0.16941775]
[1770431968770,0.014182,70559.0,70539.0,0.13884237]
[1770431969770,0.014182,70557.0,70539.0,0.13884237]
[1770431971263,0.014182,70560.0,70541.0,0.14047543]
[1770431971665,0.014181,70562.0,70543.0,0.13928151]
[1770431974674,0.014181,70565.0,70545.0,0.13825125]
[1770431976071,0.18619539,70568.0,70550.0,0.13760002]
[1770431976262,0.17021345,70585.0,70566.0,0.18794317]
[1770431976572,0.17021345,70599.0,70576.0,0.18794317]
[1770431976770,0.17021345,70599.0,70578.0,0.18794317]
[1770431976976,0.014166,70638.0,70584.0,0.18794317]
[1770431976977,0.17021345,70614.0,70584.0,0.18794317]
[1770431977166,0.17021345,70614.0,70589.0,0.20211917]
[1770431977368,0.17021345,70623.0,70597.0,0.18794317]
[1770431977676,0.18438245,70622.0,70597.0,0.18794317]
[1770431977976,0.014171,70615.0,70597.0,0.18794317]
[1770431978267,0.014171,70613.0,70597.0,0.18794317]
[1770431978471,0.001,70614.0,70585.0,0.18794317]
[1770431978472,0.014173,70600.0,70585.0,0.18794317]
[1770431978668,0.014173,70600.0,70575.0,0.18794317]
[1770431979274,0.17021345,70594.0,70575.0,0.18794317]
[1770431979464,0.014177,70584.0,70575.0,0.18794317]
[1770431979667,0.014177,70584.0,70547.0,0.18794317]
[1770431979878,0.014177,70584.0,70551.0,0.18794317]
[1770431980074,0.014177,70584.0,70559.0,0.18794317]
[1770431980272,0.014177,70582.0,70559.0,0.18794317]
[1770431980476,0.014178,70580.0,70559.0,0.18794317]
[1770431981376,0.014173,70602.0,70561.0,0.18794317]
[1770431981377,0.17021345,70601.0,70561.0,0.18794317]
[1770431981574,0.014176,70588.0,70562.0,0.014181]
[1770431981771,0.014176,70588.0,70563.0,0.18794317]
[1770431983372,0.014176,70588.0,70565.0,0.18794317]
[1770431984069,0.18439045,70583.0,70558.0,0.18794317]
[1770431984275,0.014178,70576.0,70558.0,0.18794317]
[1770431984469,0.17021345,70583.0,70558.0,0.18794317]
[1770431984470,0.014179,70573.0,70558.0,0.18794317]
[1770431985982,0.01418,70570.0,70550.0,0.18794317]
[1770431988188,0.014179,70574.0,70550.0,0.18794317]
[1770431988477,0.014179,70574.0,70552.0,0.18794317]
[1770431989279,0.17021345,70577.0,70552.0,0.18794317]
[1770431989485,0.01418,70566.0,70542.0,0.18794317]
[1770431989882,0.01418,70566.0,70543.0,0.014185]
[1770431990185,0.01418,70566.0,70544.0,0.18794317]
[1770431994282,0.01418,70566.0,70546.0,0.18794317]
[1770431998886,0.01418,70569.0,70548.0,0.18794317]
[1770431999280,0.014179,70573.0,70553.0,0.014183]
[1770431999591,0.014179,70573.0,70551.0,0.18794317]
[1770432000490,0.014179,70573.0,70554.0,0.18794317]
[1770432000690,0.014179,70573.0,70556.0,0.18794317]
[1770432000892,0.014179,70573.0,70558.0,0.18794317]
[1770432002192,0.014179,70571.0,70558.0,0.18794317]
[1770432003095,0.014179,70574.0,70558.0,0.18794317]
[1770432003284,0.014178,70577.0,70558.0,0.18794317]
[1770432004490,0.014179,70575.0,70558.0,0.18794317]
[1770432006392,0.014179,70573.0,70558.0,0.18794317]
[1770432010591,0.014178,70576.0,70558.0,0.18794317]
[1770432010796,0.014178,70579.0,70558.0,0.18794317]
[1770432011198,0.014176,70589.0,70563.0,0.014181]
[1770432011394,0.014177,70582.0,70564.0,0.17720955]
[1770432011795,0.1780607,70589.0,70564.0,0.17720955]
[1770432012196,0.014178,70578.0,70564.0,0.17720955]
[1770432012395,0.014178,70576.0,70564.0,0.17720955]
[1770432012592,0.1780607,70579.0,70552.0,0.17720955]
[1770432012905,0.01418,70570.0,70554.0,0.17720955]